bitfinex-derivatives/quotes_SOLF0:USTF0_20241203
["timestamp","ask_amount","ask_price","bid_price","bid_amount"]
[1733201970832,4.1851,228.76,228.7,5.55471045]
[1733201971933,4.1851,228.76,228.72,2.1854]
[1733201972136,4.1851,228.76,228.7,5.55471045]
[1733201973234,4.1851,228.76,228.73,2.1853]
[1733201974436,2.0,228.76,228.73,2.1853]
[1733201980136,2.0,228.76,228.74,2.1852]
[1733201980435,2.0,228.76,228.7,5.55471045]
[1733201981035,2.0,228.76,228.74,2.1852]
[1733201981632,2.0,228.76,228.7,5.55471045]
[1733201982637,2.0,228.76,228.73,2.1853]
[1733201983340,2.0,228.76,228.75,2.1851]
[1733201989246,2.0,228.76,228.66,4.5251]
[1733201989445,2.0,228.76,228.73,2.1853]
[1733201996547,5.55471045,228.74,228.58,0.08252605]
[1733201996850,5.55471045,228.67,228.59,5.03317502]
[1733201997046,2.0,228.66,228.6,6.64887893]
[1733201997248,2.0,228.65,228.6,5.55471045]
[1733201998346,2.0,228.65,228.61,1.09429847]
[1733201998549,2.0,228.65,228.62,1.09429847]
[1733201998748,2.0,228.65,228.6,5.55471045]
[1733201999048,2.0,228.65,228.62,2.1863]
[1733202000948,2.0,228.67,228.66,2.186]
[1733202001153,2.0,228.69,228.66,2.186]
[1733202001756,2.0,228.69,228.65,2.1861]
[1733202003551,2.0,228.69,228.64,5.55471045]
[1733202003749,2.0,228.69,228.66,2.186]
[1733202004255,2.0,228.69,228.65,2.1861]
[1733202004951,2.0,228.69,228.66,2.186]
[1733202006557,2.0,228.72,228.68,2.1858]
[1733202006758,2.0,228.72,228.66,5.55471045]
[1733202007055,2.0,228.73,228.66,5.55471045]
[1733202007255,2.0,228.73,228.68,5.55471045]
[1733202007957,2.0,228.73,228.7,2.1856]
[1733202011153,2.0,228.73,228.72,2.1854]
[1733202011752,7.73971045,228.77,228.72,2.1854]
[1733202011953,2.0,228.76,228.73,2.1853]
[1733202015265,2.0,228.76,228.74,2.1852]
[1733202015860,2.0,228.77,228.74,2.1852]
[1733202016366,2.0,228.77,228.65,2.22712159]
[1733202016561,5.55471045,228.76,228.68,5.55471045]
[1733202017267,2.1852,228.75,228.7,2.1855]
[1733202018465,2.1852,228.75,228.71,2.1855]
[1733202019271,2.1851,228.76,228.71,2.1855]
[1733202019865,2.0,228.76,228.73,2.1853]
[1733202022376,2.1849,228.78,228.72,5.55471045]
[1733202022570,4.1849,228.78,228.74,2.1852]
[1733202025972,2.0,228.78,228.74,2.1852]
[1733202027771,4.1849,228.78,228.74,2.1852]
[1733202030279,4.1849,228.78,228.71,2.1853]
[1733202030280,5.55471045,228.76,228.71,2.1853]
[1733202030473,5.55471045,228.76,228.66,2.0]
[1733202030672,5.55471045,228.76,228.69,5.55471045]
[1733202030977,2.1851,228.75,228.71,2.1854]
[1733202032177,2.1851,228.75,228.71,7.74011045]
[1733202037376,5.55471045,228.76,228.64,38.26000378]
[1733202037577,5.55471045,228.76,228.68,5.55471045]
[1733202037981,5.55471045,228.74,228.64,38.26000378]
[1733202038181,2.0,228.73,228.66,5.55471045]
[1733202038976,2.1854,228.71,228.67,2.1857]
[1733202040381,2.1853,228.72,228.69,2.1855]
[1733202041176,2.1854,228.71,228.68,2.1856]
[1733202044179,2.0,228.73,228.68,2.1856]
[1733202044382,2.1853,228.72,228.68,2.1856]
[1733202044985,2.1855,228.7,228.66,2.1858]
[1733202045181,2.1855,228.7,228.65,5.55471045]
[1733202046985,2.1855,228.7,228.67,2.1857]
[1733202048181,2.1855,228.7,228.66,2.1858]
[1733202049587,2.1854,228.71,228.66,2.1858]
[1733202050177,2.1855,228.7,228.66,2.1858]
[1733202050379,5.55471045,228.72,228.64,7.74071045]
[1733202050583,5.55471045,228.72,228.65,1.09408312]
[1733202050784,2.1856,228.69,228.64,2.186]
[1733202050990,2.0,228.68,228.64,2.186]
[1733202051485,2.1858,228.67,228.64,2.186]
[1733202052383,2.1858,228.67,228.63,2.186]
[1733202052587,2.1859,228.66,228.64,1.09413654]
[1733202052788,2.1859,228.66,228.61,5.55471045]
[1733202052988,2.1859,228.66,228.62,3.28029684]
[1733202053187,2.1859,228.66,228.62,2.1861]
[1733202054589,2.0,228.68,228.55,2.0]
[1733202054590,7.55471045,228.68,228.55,2.0]
[1733202054793,7.55471045,228.68,228.59,5.55471045]
[1733202055091,7.55471045,228.68,228.6,2.1864]
[1733202056087,2.186,228.65,228.6,2.1864]
[1733202057591,2.186,228.65,228.6,7.74111045]
[1733202058489,2.1861,228.64,228.6,5.55471045]
[1733202058697,2.0,228.63,228.6,5.55471045]
[1733202059092,2.1862,228.62,228.57,2.1866]
[1733202059294,5.55471045,228.62,228.54,4.046]
[1733202059495,5.55471045,228.62,228.54,8.24061045]
[1733202059688,2.1866,228.59,228.54,8.24061045]
[1733202059893,2.0,228.58,228.56,5.55471045]
[1733202060091,4.1865,228.59,228.56,5.55471045]
[1733202060292,4.1865,228.59,228.54,2.6859]
[1733202060293,2.0,228.59,228.54,8.24061045]
[1733202060497,2.0,228.59,228.54,6.88571045]
[1733202061196,2.1867,228.57,228.54,6.88571045]
[1733202061699,2.0,228.59,228.54,6.88571045]
[1733202061901,2.1866,228.58,228.54,6.88571045]
[1733202063601,2.1866,228.58,228.54,5.55471045]
[1733202065092,2.0,228.59,228.54,5.55471045]
[1733202065297,2.0,228.59,228.56,5.55471045]
[1733202065703,2.1864,228.6,228.56,5.55471045]
[1733202066000,4.1863,228.61,228.57,2.1867]
[1733202066605,4.1863,228.61,228.56,7.74151045]
[1733202067301,4.1863,228.61,228.56,5.55471045]
[1733202067501,4.1863,228.61,228.57,2.1867]
[1733202069902,2.1865,228.6,228.55,7.74151045]
[1733202070896,2.1865,228.6,228.56,2.1868]
[1733202071501,4.1864,228.61,228.56,2.1868]
[1733202071697,4.1864,228.61,228.57,7.74141045]
[1733202072207,2.0,228.62,228.59,5.55471045]
[1733202072602,5.55471045,228.67,228.59,5.55471045]
[1733202072805,2.0,228.66,228.59,5.55471045]
[1733202073107,2.0,228.66,228.6,2.1864]
[1733202073503,2.186,228.65,228.6,2.1864]
[1733202073700,2.0,228.64,228.6,2.1864]
[1733202075404,4.1861,228.64,228.58,5.55471045]
[1733202077104,4.1861,228.64,228.6,2.1864]
[1733202077711,4.1861,228.64,228.58,5.55471045]
[1733202077712,4.1861,228.64,228.59,2.1865]
[1733202078912,2.1862,228.63,228.59,2.1865]
[1733202080413,2.1862,228.63,228.58,7.74131045]
[1733202082717,2.0,228.64,228.58,7.74131045]
[1733202082907,2.1862,228.62,228.58,7.74131045]
[1733202083215,5.55471045,228.63,228.54,2.1869]
[1733202083409,2.1867,228.58,228.54,7.74161045]
[1733202084409,2.1867,228.58,228.55,1.09445214]
[1733202084614,2.1867,228.58,228.54,7.74161045]
[1733202084816,2.1867,228.58,228.55,1.09444414]
[1733202085120,2.1867,228.58,228.54,7.74161045]
[1733202085312,2.1867,228.58,228.55,1.09442261]
[1733202085513,2.1867,228.58,228.54,2.1869]
[1733202085714,2.1867,228.58,228.55,1.09443545]
[1733202086015,2.1867,228.58,228.55,2.1869]
[1733202087712,2.1868,228.57,228.54,5.55471045]
[1733202088615,2.0,228.6,228.54,5.55471045]
[1733202089417,2.1869,228.56,228.54,5.55471045]
[1733202091516,2.1869,228.56,228.53,2.1871]
[1733202092024,2.1869,228.56,228.49,1.293]
[1733202092223,2.1867,228.58,228.52,5.55471045]
[1733202092418,2.0,228.6,228.52,5.55471045]
[1733202092927,2.1869,228.56,228.52,5.55471045]
[1733202093120,2.0,228.55,228.52,5.55471045]
[1733202094325,4.1869,228.55,228.52,5.55471045]
[1733202094625,2.0,228.55,228.54,5.55471045]
[1733202095115,2.0,228.55,228.54,2.1871]
[1733202095624,2.0,228.55,228.54,7.74181045]
[1733202096126,2.0,228.55,228.54,5.55471045]
[1733202099229,2.0,228.55,228.53,5.55471045]
[1733202099530,4.187,228.55,228.53,5.55471045]
[1733202101128,4.187,228.55,228.51,7.74211045]
[1733202101323,4.187,228.55,228.52,1.09470217]
[1733202101523,4.187,228.55,228.51,7.74211045]
[1733202101724,4.187,228.55,228.52,1.09470646]
[1733202102030,2.1871,228.54,228.51,5.55471045]
[1733202104230,2.1871,228.54,228.5,2.1874]
[1733202104430,2.1871,228.54,228.51,5.55471045]
[1733202104631,2.1871,228.54,228.51,1.09474674]
[1733202104833,2.1871,228.54,228.51,5.55471045]
[1733202105229,7.55471045,228.55,228.47,2.1878]
[1733202105532,7.55471045,228.55,228.48,1.09483578]
[1733202105833,7.55471045,228.55,228.47,2.1878]
[1733202106033,7.55471045,228.55,228.48,1.09488534]
[1733202106229,7.55471045,228.55,228.47,2.1878]
[1733202106433,2.1874,228.51,228.47,2.1878]
[1733202107531,2.0,228.5,228.47,2.1878]
[1733202108434,2.0,228.5,228.46,7.74261045]
[1733202109229,2.1876,228.49,228.45,4.8472]
[1733202109432,2.1876,228.49,228.46,5.55471045]
[1733202112740,2.0,228.5,228.46,5.55471045]
[1733202113037,2.0,228.5,228.48,5.55471045]
[1733202114135,5.55471045,228.55,228.48,5.55471045]
[1733202114336,2.0,228.54,228.52,5.55471045]
[1733202114542,2.0,228.55,228.52,5.55471045]
[1733202115538,41.35886618,228.6,228.54,5.55471045]
[1733202115841,2.0,228.59,228.54,5.55471045]
[1733202116939,4.1867,228.59,228.54,7.74181045]
[1733202117837,2.1868,228.58,228.54,5.55471045]
[1733202122846,2.1868,228.58,228.54,7.74181045]
[1733202124648,4.1867,228.59,228.54,7.74181045]
[1733202126443,2.0,228.59,228.54,7.74181045]
[1733202126746,2.1868,228.58,228.54,7.74181045]
[1733202129447,4.1867,228.59,228.55,2.187]
[1733202130149,2.1868,228.58,228.54,7.74181045]
[1733202133846,2.6653,228.71,228.56,5.55471045]
[1733202134047,5.55471045,228.67,228.58,5.55471045]
[1733202134247,34.95542489,228.68,228.58,5.55471045]
[1733202134452,2.0,228.67,228.6,5.55471045]
[1733202134651,2.1861,228.65,228.6,5.55471045]
[1733202135050,2.6653,228.71,228.6,5.55471045]
[1733202135248,2.6653,228.71,228.64,5.55471045]
[1733202135249,2.0,228.7,228.64,5.55471045]
[1733202135652,2.1857,228.69,228.64,7.74091045]
[1733202135850,2.1857,228.69,228.64,2.1862]
[1733202136249,2.186,228.66,228.62,5.55471045]
[1733202136552,5.55471045,228.67,228.56,38.54237496]
[1733202136758,5.55471045,228.67,228.6,5.55471045]
[1733202136956,5.55471045,228.67,228.61,1.09422569]
[1733202137257,5.55471045,228.67,228.6,5.55471045]
[1733202137855,5.55471045,228.65,228.56,5.55471045]
[1733202138058,2.0,228.64,228.56,5.55471045]
[1733202139054,2.1864,228.63,228.58,2.1867]
[1733202140956,2.1864,228.62,228.57,2.1868]
[1733202141151,2.0,228.64,228.57,2.1868]
[1733202142958,2.1865,228.62,228.57,2.1868]
[1733202145256,2.0,228.64,228.53,38.54630696]
[1733202145458,2.1866,228.6,228.55,5.55471045]
[1733202145659,5.55471045,228.63,228.55,5.55471045]
[1733202146261,2.1867,228.59,228.55,5.55471045]
[1733202148659,2.1869,228.57,228.52,2.1873]
[1733202148858,2.1869,228.57,228.53,5.55471045]
[1733202149363,2.1868,228.58,228.53,7.74191045]
[1733202150662,2.0,228.59,228.53,7.74191045]
[1733202150864,2.1869,228.57,228.53,7.74191045]
[1733202151066,2.0,228.59,228.53,7.74191045]
[1733202151767,2.1869,228.58,228.53,7.74191045]
[1733202152065,2.0,228.59,228.53,7.74191045]
[1733202152769,2.1868,228.58,228.53,7.74191045]
[1733202153258,2.0,228.59,228.53,7.74191045]
[1733202153465,2.1869,228.57,228.53,7.74191045]
[1733202154557,2.187,228.56,228.53,5.55471045]
[1733202154961,2.0,228.59,228.53,5.55471045]
[1733202155358,2.187,228.56,228.53,5.55471045]
[1733202155563,2.0,228.59,228.52,2.1873]
[1733202155763,2.0,228.59,228.52,7.74201045]
[1733202156358,2.187,228.56,228.52,5.55471045]
[1733202156563,2.0,228.59,228.52,5.55471045]
[1733202156959,2.187,228.56,228.52,5.55471045]
[1733202157168,7.55471045,228.59,228.5,5.55471045]
[1733202157359,7.55471045,228.59,228.51,1.09470387]
[1733202157563,2.1872,228.54,228.49,5.55471045]
[1733202157759,4.1872,228.54,228.5,1.09473567]
[1733202157965,4.1872,228.54,228.51,6.64944612]
[1733202158164,4.1872,228.54,228.51,5.55471045]
[1733202160366,2.1872,228.53,228.51,5.55471045]
[1733202161264,2.0,228.54,228.42,0.08262509]
[1733202161571,5.55471045,228.53,228.44,5.55471045]
[1733202161760,5.55471045,228.53,228.45,1.09478541]
[1733202161963,2.1875,228.51,228.44,5.55471045]
[1733202162160,5.55471045,228.53,228.44,5.55471045]
[1733202163764,5.55471045,228.49,228.34,0.08262509]
[1733202163967,2.0,228.48,228.39,5.55471045]
[1733202164266,5.55471045,228.47,228.33,3.9225]
[1733202164565,5.55471045,228.47,228.39,5.55471045]
[1733202165466,2.1884,228.41,228.39,5.55471045]
[1733202165867,2.1884,228.41,228.37,5.55471045]
[1733202166468,2.1884,228.41,228.39,5.55471045]
[1733202166768,2.0,228.42,228.39,5.55471045]
[1733202168567,4.1883,228.42,228.39,5.55471045]
[1733202169069,2.0,228.42,228.39,5.55471045]
[1733202170071,2.0,228.42,228.37,2.1888]
[1733202170275,2.0,228.42,228.39,5.55471045]
[1733202171375,4.1883,228.42,228.39,5.55471045]
[1733202171685,2.0,228.42,228.39,5.55471045]
[1733202171873,4.1883,228.42,228.39,5.55471045]
[1733202172473,2.0,228.42,228.39,5.55471045]
[1733202172683,2.0,228.46,228.41,5.55471045]
[1733202172876,2.0,228.47,228.44,5.55471045]
[1733202173071,2.0,228.48,228.44,5.55471045]
[1733202173276,2.0,228.49,228.44,5.55471045]
[1733202174175,5.55471045,228.48,228.4,5.55471045]
[1733202174882,2.1881,228.45,228.4,5.55471045]
[1733202175972,2.1881,228.45,228.42,5.55471045]
[1733202179780,2.0,228.49,228.36,2.0]
[1733202179979,2.1882,228.44,228.4,5.55471045]
[1733202180786,2.1882,228.44,228.37,2.1887]
[1733202181079,2.1882,228.43,228.37,2.1887]
[1733202181288,5.55471045,228.48,228.33,3.9225]
[1733202181289,5.55471045,228.48,228.38,5.55471045]
[1733202181586,5.55471045,228.46,228.38,5.55471045]
[1733202181778,2.1884,228.41,228.38,5.55471045]
[1733202182384,2.1885,228.4,228.35,2.189]
[1733202182580,2.0,228.43,228.36,5.55471045]
[1733202182778,2.0,228.43,228.33,3.9225]
[1733202182982,2.1888,228.37,228.36,5.55471045]
[1733202183181,2.1888,228.37,228.34,5.55471045]
[1733202183681,2.1885,228.4,228.34,5.55471045]
[1733202183889,5.55471045,228.42,228.34,5.55471045]
[1733202184486,2.1889,228.37,228.34,5.55471045]
[1733202184681,5.55471045,228.42,228.34,5.55471045]
[1733202185185,2.1889,228.37,228.34,5.55471045]
[1733202185387,5.55471045,228.42,228.34,5.55471045]
[1733202185779,2.189,228.35,228.34,5.55471045]
[1733202186985,2.0,228.38,228.33,2.6217]
[1733202187181,5.55471045,228.36,228.27,2.1897]
[1733202187383,5.55471045,228.36,228.28,5.55471045]
[1733202187580,2.1891,228.34,228.28,5.55471045]
[1733202187787,2.0,228.33,228.28,5.55471045]
[1733202188379,2.1894,228.31,228.28,5.55471045]
[1733202188581,2.0,228.33,228.28,5.55471045]
[1733202188780,4.1893,228.33,228.28,5.55471045]
[1733202188982,2.0,228.33,228.3,5.55471045]
[1733202189189,2.0,228.33,228.32,5.55471045]
[1733202189485,2.0,228.34,228.28,2.1896]
[1733202189682,2.0,228.34,228.31,5.55471045]
[1733202190785,2.1892,228.33,228.31,5.55471045]
[1733202192387,2.1892,228.33,228.28,7.74431045]
[1733202192583,2.1893,228.32,228.28,5.55471045]
[1733202193189,4.1891,228.34,228.29,2.1895]
[1733202193489,2.0,228.34,228.28,5.55471045]
[1733202193690,2.0,228.34,228.29,1.09584173]
[1733202193886,2.0,228.34,228.28,5.55471045]
[1733202193887,2.0,228.34,228.3,1.09584228]
[1733202194088,2.1893,228.32,228.28,5.55471045]
[1733202194285,2.1893,228.32,228.29,1.09584158]
[1733202194490,2.0,228.34,228.28,5.55471045]
[1733202194690,2.0,228.34,228.29,1.09585779]
[1733202194986,2.1893,228.33,228.28,5.55471045]
[1733202195190,2.1893,228.33,228.29,1.09585883]
[1733202195490,2.1895,228.3,228.25,2.1898]
[1733202195688,2.1895,228.3,228.28,5.55471045]
[1733202196083,2.0,228.34,228.29,1.09589702]
[1733202196390,2.1894,228.31,228.28,5.55471045]
[1733202196590,2.0,228.34,228.29,1.09587592]
[1733202196790,2.0,228.34,228.28,5.55471045]
[1733202196991,2.0,228.34,228.29,1.09587752]
[1733202197188,2.1894,228.31,228.28,5.55471045]
[1733202198295,2.1894,228.31,228.29,1.09590474]
[1733202198488,2.1894,228.31,228.28,5.55471045]
[1733202199293,7.55471045,228.34,228.23,1.2756]
[1733202199495,2.1895,228.3,228.25,2.1899]
[1733202199690,2.1895,228.3,228.26,8.40420385]
[1733202199890,2.1895,228.3,228.27,1.095959]
[1733202200190,2.1895,228.3,228.28,1.095959]
[1733202200392,2.1895,228.3,228.25,2.1899]
[1733202200589,2.1895,228.3,228.26,8.40426667]
[1733202200894,2.1895,228.3,228.27,1.09598316]
[1733202201192,2.1895,228.3,228.28,1.09598316]
[1733202201387,2.1895,228.3,228.26,5.55471045]
[1733202201585,2.1895,228.3,228.27,1.09597782]
[1733202201894,2.0,228.34,228.28,8.40414219]
[1733202202089,4.3759,228.46,228.29,2.84943174]
[1733202202390,5.55471045,228.42,228.34,5.55471045]
[1733202202696,2.1887,228.38,228.32,2.1892]
[1733202202897,2.1887,228.38,228.33,6.65048597]
[1733202203190,2.0,228.41,228.3,2.1894]
[1733202203191,2.189,228.35,228.3,2.1894]
[1733202203494,2.189,228.35,228.31,8.40370244]
[1733202203699,2.0,228.36,228.32,1.09576615]
[1733202203896,2.0,228.36,228.33,1.09576615]
[1733202204195,2.0,228.36,228.34,1.09573626]
[1733202204595,2.189,228.35,228.31,5.55471045]
[1733202204793,2.0,228.36,228.32,1.09572915]
[1733202205096,2.0,228.36,228.33,1.09572915]
[1733202205290,2.0,228.36,228.31,5.55471045]
[1733202205490,2.189,228.35,228.32,1.09573851]
[1733202205690,2.189,228.35,228.31,5.55471045]
[1733202205889,2.0,228.36,228.32,1.09576963]
[1733202206090,2.0,228.36,228.29,5.55471045]
[1733202206289,2.0,228.36,228.3,1.09582697]
[1733202206493,2.0,228.36,228.29,5.55471045]
[1733202206692,7.55471045,228.36,228.3,1.09588237]
[1733202206893,7.55471045,228.36,228.29,5.55471045]
[1733202207195,2.1891,228.34,228.3,1.0958794]
[1733202207391,2.1891,228.34,228.29,5.55471045]
[1733202207392,2.1891,228.34,228.31,1.09586019]
[1733202207693,2.1891,228.34,228.29,5.55471045]
[1733202207897,2.1891,228.34,228.3,1.0958195]
[1733202208198,2.1891,228.34,228.31,1.0958195]
[1733202208400,2.1891,228.34,228.29,5.55471045]
[1733202208698,2.1891,228.34,228.3,1.09583033]
[1733202208899,2.1892,228.33,228.29,5.55471045]
[1733202209096,2.1892,228.33,228.3,1.09585162]
[1733202209295,2.1892,228.33,228.29,5.55471045]
[1733202209496,2.1892,228.33,228.3,1.09584166]
[1733202209800,2.1892,228.33,228.29,5.55471045]
[1733202209994,2.1892,228.33,228.3,1.09581353]
[1733202210203,2.0,228.36,228.31,5.55471045]
[1733202210898,2.0,228.35,228.31,5.55471045]
[1733202211097,2.0,228.35,228.32,1.09574907]
[1733202211301,2.0,228.35,228.31,5.55471045]
[1733202211497,2.0,228.35,228.32,1.09572287]
[1733202211696,2.0,228.35,228.31,5.55471045]
[1733202211893,2.0,228.35,228.32,1.09571415]
[1733202212093,2.0,228.35,228.33,1.09571415]
[1733202212294,2.0,228.35,228.31,7.74401045]
[1733202212499,2.0,228.35,228.32,1.09571683]
[1733202212806,2.0,228.35,228.31,7.74401045]
[1733202213000,2.0,228.35,228.32,1.09572585]
[1733202213201,2.0,228.35,228.32,3.28492585]
[1733202213397,2.0,228.35,228.32,2.1892]
[1733202213905,2.0,228.35,228.33,7.74381045]
[1733202214198,2.0,228.35,228.33,5.55471045]
[1733202214902,2.0,228.35,228.33,7.74391045]
[1733202215108,2.0,228.35,228.33,5.55471045]
[1733202218103,34.24811579,228.46,228.33,7.55471045]
[1733202218399,2.0,228.47,228.43,5.55471045]
[1733202218600,2.0,228.48,228.43,5.55471045]
[1733202219403,2.1878,228.47,228.43,5.55471045]
[1733202221103,5.55471045,228.45,228.37,5.55471045]
[1733202221501,5.55471045,228.47,228.39,5.55471045]
[1733202221902,2.1882,228.43,228.39,5.55471045]
[1733202224499,5.55471045,228.47,228.38,5.55471045]
[1733202225101,2.1883,228.43,228.38,5.55471045]
[1733202225303,2.0,228.42,228.34,3.4696]
[1733202225501,2.0,228.42,228.34,9.02431045]
[1733202225702,2.0,228.42,228.34,6.83531045]
[1733202225703,2.1887,228.39,228.34,6.83531045]
[1733202226799,5.55471045,228.41,228.34,5.55471045]
[1733202227002,5.55471045,228.41,228.32,7.74391045]
[1733202227198,2.0,228.42,228.32,5.55471045]
[1733202227199,5.55471045,228.39,228.32,5.55471045]
[1733202227601,2.1889,228.36,228.32,5.55471045]
[1733202231103,4.1889,228.36,228.32,5.55471045]
[1733202232217,2.0,228.36,228.26,2.0]
[1733202232513,2.0,228.36,228.3,5.55471045]
[1733202235317,2.1891,228.34,228.3,5.55471045]
[1733202236621,2.0,228.36,228.3,5.55471045]
[1733202236918,2.189,228.35,228.3,5.55471045]
[1733202237118,2.189,228.35,228.3,7.74411045]
[1733202237821,2.0,228.36,228.32,5.55471045]
[1733202238421,2.0,228.36,228.32,7.74391045]
[1733202238922,5.55471045,228.33,228.13,5.55471045]
[1733202239124,2.6629,228.34,228.08,2.77]
[1733202239423,5.55471045,228.26,228.17,5.55471045]
[1733202239626,2.0,228.25,228.17,5.55471045]
[1733202240319,5.55471045,228.24,228.15,5.55471045]
[1733202240715,2.1902,228.22,228.15,7.74561045]
[1733202241114,2.1902,228.22,228.15,2.1909]
[1733202241316,2.1902,228.22,228.15,7.74561045]
[1733202243320,7.74491045,228.22,228.15,7.74561045]
[1733202244426,7.74491045,228.22,228.16,2.1908]
[1733202244922,2.1899,228.26,228.19,2.1905]
[1733202245221,2.6629,228.34,228.21,5.55471045]
[1733202245416,5.55471045,228.28,228.21,5.55471045]
[1733202245616,2.0,228.27,228.21,5.55471045]
[1733202245821,4.1898,228.27,228.21,7.74501045]
[1733202247131,4.1898,228.27,228.21,2.1903]
[1733202248631,2.0,228.27,228.21,5.55471045]
[1733202249228,5.55471045,228.28,228.21,5.55471045]
[1733202249523,5.55471045,228.29,228.21,5.55471045]
[1733202250332,5.55471045,228.29,228.23,2.19]
[1733202250526,5.55471045,228.29,228.21,5.55471045]
[1733202250729,1.3548,228.35,228.23,5.55471045]
[1733202250934,7.74411045,228.31,228.25,2.1899]
[1733202251733,2.0,228.34,228.24,2.1899]
[1733202251734,7.74421045,228.29,228.24,2.1899]
[1733202252225,5.55471045,228.29,228.24,2.1899]
[1733202252425,5.55471045,228.29,228.23,5.55471045]
[1733202252733,5.55471045,228.29,228.25,2.1899]
[1733202254930,7.74431045,228.29,228.24,2.19]
[1733202255537,2.0,228.34,228.21,5.55471045]
[1733202255832,2.0,228.34,228.27,2.1897]
[1733202255833,5.55471045,228.31,228.27,2.1897]
[1733202256028,5.55471045,228.31,228.23,5.55471045]
[1733202256738,7.74411045,228.31,228.26,2.1897]
[1733202258937,2.04,228.32,228.23,5.55471045]
[1733202259138,7.59471045,228.32,228.23,5.55471045]
[1733202259936,4.2293,228.32,228.23,5.55471045]
[1733202260133,2.04,228.32,228.25,5.55471045]
[1733202260540,2.04,228.32,228.3,2.1894]
[1733202261238,2.04,228.32,228.27,5.55471045]
[1733202262137,2.04,228.32,228.29,2.1895]
[1733202264341,55.58895582,228.4,228.31,5.55471045]
[1733202264535,53.54895582,228.4,228.33,5.55471045]
[1733202265036,2.1886,228.39,228.34,2.189]
[1733202265342,5.55471045,228.42,228.33,5.55471045]
[1733202265634,5.55471045,228.42,228.35,5.55471045]
[1733202265635,2.1883,228.42,228.35,5.55471045]
[1733202265835,5.55471045,228.43,228.35,5.55471045]
[1733202267038,2.1884,228.41,228.36,2.1888]
[1733202269840,2.04,228.45,228.35,5.55471045]
[1733202270034,7.74291045,228.43,228.38,2.1886]
[1733202271538,2.1879,228.46,228.4,2.1884]
[1733202271739,5.55471045,228.48,228.39,5.55471045]
[1733202272136,2.1878,228.47,228.42,2.1883]
[1733202272335,2.04,228.49,228.41,5.55471045]
[1733202272535,7.59471045,228.49,228.41,5.55471045]
[1733202273944,9.78241045,228.49,228.43,2.1882]
[1733202274144,7.74241045,228.49,228.43,2.1882]
[1733202274344,7.74241045,228.49,228.41,5.55471045]
[1733202274649,2.1877,228.48,228.41,5.55471045]
[1733202276047,5.55471045,228.45,228.39,2.5919]
[1733202277049,2.1882,228.44,228.39,4.7805]
[1733202277246,5.55471045,228.45,228.39,4.7805]
[1733202277445,5.55471045,228.47,228.4,2.1885]
[1733202277843,2.04,228.52,228.39,8.14661045]
[1733202278048,5.55471045,228.49,228.43,2.1882]
[1733202278252,2.1876,228.5,228.43,5.55471045]
[1733202279149,47.9713141,228.51,228.43,5.55471045]
[1733202279350,5.55471045,228.51,228.43,5.55471045]
[1733202279551,167.92046,228.57,228.47,5.55471045]
[1733202279751,167.92046,228.57,228.49,5.55471045]
[1733202280148,167.92046,228.57,228.51,5.55471045]
[1733202280650,167.92046,228.57,228.51,7.74201045]
[1733202281045,5.55471045,228.56,228.49,5.55471045]
[1733202281244,5.55471045,228.56,228.48,2.1876]
[1733202281854,2.1871,228.54,228.49,2.1876]
[1733202282053,5.55471045,228.56,228.49,7.74231045]
[1733202282253,5.55471045,228.56,228.49,5.55471045]
[1733202282745,167.92046,228.57,228.49,5.55471045]
[1733202283654,2.187,228.55,228.49,5.55471045]
[1733202285049,2.187,228.55,228.49,7.74221045]
[1733202285750,167.92046,228.57,228.51,5.55471045]
[1733202286050,167.92046,228.57,228.53,5.55471045]
[1733202286550,167.92046,228.57,228.54,2.1871]
[1733202287453,167.92046,228.57,228.53,7.74191045]
[1733202287960,167.92046,228.57,228.53,5.55471045]
[1733202288253,167.92046,228.57,228.54,2.1871]